fUSD/lending_fUSD_20250417
["ID","MTS","AMOUNT","RATE_DAILY","PERIOD"]
[358271653,1744888247143,-151.0,0.00139726,120]
[358271655,1744888247152,-151.0,0.00139726,120]
[358271656,1744888247162,-151.0,0.00139726,120]
[358271657,1744888247171,-151.0,0.00139726,120]
[358271658,1744888247182,-151.0,0.00139726,120]
[358271659,1744888247191,-151.0,0.00139726,120]
[358271660,1744888247201,-151.0,0.00139726,120]
[358271662,1744888247210,-151.0,0.00139726,120]
[358271664,1744888247219,-151.0,0.00139726,120]
[358271666,1744888247229,-151.0,0.00139726,120]
[358271668,1744888247238,-151.0,0.00139726,120]
[358271670,1744888247249,-151.0,0.00139726,120]
[358271672,1744888247258,-297.235052,0.00139726,120]
[358271674,1744888247267,-151.0,0.00139726,120]
[358271676,1744888247276,-151.0,0.00139726,120]
[358271678,1744888247285,-151.0,0.00139726,120]
[358271680,1744888247294,-151.0,0.00139726,120]
[358271682,1744888247303,-151.0,0.00139726,120]
[358271684,1744888247313,-151.0,0.00139726,120]
[358271686,1744888247322,-151.0,0.00139726,120]
[358271688,1744888247332,-151.0,0.00139726,120]
[358271690,1744888247341,-151.0,0.00139726,120]
[358271692,1744888247350,-151.0,0.00139726,120]
[358271694,1744888247359,-223.88424,0.00139726,120]
[358271696,1744888247368,-151.272878,0.00139726,120]
[358271697,1744888247377,-151.0,0.00139726,120]
[358271699,1744888247387,-152.241112,0.00139726,120]
[358271701,1744888247396,-151.0,0.00139726,120]
[358271703,1744888247405,-151.0,0.00139726,120]
[358271705,1744888247414,-151.0,0.00139726,120]
[358271707,1744888247423,-151.0,0.00139726,120]
[358271709,1744888247432,-151.0,0.00139726,120]
[358271711,1744888247441,-151.0,0.00139726,120]
[358271713,1744888247452,-151.0,0.00139726,120]
[358271715,1744888247462,-212.990048,0.00139726,120]
[358271717,1744888247471,-151.0,0.00139726,120]
[358271719,1744888247481,-151.0,0.00139726,120]
[358271721,1744888247490,-151.0,0.00139726,120]
[358271723,1744888247499,-151.0,0.00139726,120]
[358271725,1744888247507,-153.054886,0.00139726,120]
[358271727,1744888247516,-153.054886,0.00139726,120]
[358271729,1744888247525,-153.054886,0.00139726,120]
[358271731,1744888247534,-153.054886,0.00139726,120]
[358271733,1744888247543,-153.054886,0.00139726,120]
[358271735,1744888247552,-153.054886,0.00139726,120]
[358271736,1744888247561,-153.054886,0.00139726,120]
[358271738,1744888247571,-151.0,0.00139726,120]
[358271740,1744888247580,-153.054886,0.00139726,120]
[358271742,1744888247589,-151.0,0.00139726,120]
[358271744,1744888247599,-153.054886,0.00139726,120]
[358271746,1744888247608,-151.0,0.00139726,120]
[358271748,1744888247617,-153.054886,0.00139726,120]
[358271750,1744888247626,-151.0,0.00139726,120]
[358271752,1744888247636,-153.054886,0.00139726,120]
[358271753,1744888247645,-153.054886,0.00139726,120]
[358271754,1744888247654,-153.054886,0.00139726,120]
[358271755,1744888247664,-153.054886,0.00139726,120]
[358271756,1744888247673,-153.054886,0.00139726,120]
[358271757,1744888247683,-153.054886,0.00139726,120]
[358271758,1744888247692,-153.05489,0.00139726,120]
[358271759,1744888247701,-151.0,0.00139726,120]
[358271760,1744888247712,-151.0,0.00139726,120]
[358271761,1744888247721,-151.0,0.00139726,120]
[358271762,1744888247732,-151.0,0.00139726,120]
[358271763,1744888247741,-151.0,0.00139726,120]
[358271764,1744888247751,-151.0,0.00139726,120]
[358271765,1744888247760,-151.0,0.00139726,120]
[358271766,1744888247865,-151.0,0.00139726,120]
[358271767,1744888247875,-151.0,0.00139726,120]
[358271768,1744888247885,-151.0,0.00139726,120]
[358271769,1744888247894,-151.0,0.00139726,120]
[358271770,1744888247903,-151.0,0.00139726,120]
[358271771,1744888247913,-151.0,0.00139726,120]
[358271772,1744888247922,-181.63878,0.00139726,120]
[358271773,1744888247932,-318.450678,0.00139726,120]
[358271774,1744888247942,-318.450678,0.00139726,120]
[358271775,1744888247952,-151.0,0.00139726,120]
[358271776,1744888247961,-318.450678,0.00139726,120]
[358271777,1744888247971,-318.450678,0.00139726,120]
[358271778,1744888247984,-318.450688,0.00139726,120]
[358271779,1744888247993,-151.0,0.00139726,120]
[358271780,1744888248004,-151.0,0.00139726,120]
[358271781,1744888248013,-151.0,0.00139726,120]
[358271782,1744888248024,-151.0,0.00139726,120]
[358271783,1744888248033,-151.0,0.00139726,120]
[358271784,1744888248043,-151.0,0.00139726,120]
[358271785,1744888248054,-151.0,0.00139726,120]
[358271786,1744888248064,-151.0,0.00139726,120]
[358271787,1744888248074,-151.0,0.00139726,120]
[358271788,1744888248085,-151.0,0.00139726,120]
[358271789,1744888248095,-151.0,0.00139726,120]
[358271790,1744888248104,-151.0,0.00139726,2]
[358271791,1744888248114,-262.774753,0.00139726,2]
[358271792,1744888248125,-151.0,0.00139726,120]
[358271793,1744888248135,-158.95657,0.00139726,120]
[358271794,1744888248145,-151.0,0.00139726,120]
[358271795,1744888248154,-203.273352,0.00139726,120]
[358271796,1744888248165,-151.0,0.00139726,120]
[358271797,1744888248174,-151.0,0.00139726,120]
[358271798,1744888248184,-151.0,0.00139726,120]
[358271799,1744888248193,-151.0,0.00139726,120]
[358271800,1744888248202,-151.0,0.00139726,120]
[358271801,1744888248212,-151.0,0.00139726,120]
[358271802,1744888248221,-151.0,0.00139726,120]
[358271803,1744888248232,-151.0,0.00139726,120]
[358271804,1744888248242,-151.0,0.00139726,120]
[358271805,1744888248251,-151.0,0.00139726,120]
[358271806,1744888248260,-151.0,0.00139726,120]
[358271807,1744888248270,-151.0,0.00139726,120]
[358271808,1744888248278,-151.0,0.00139726,120]
[358271809,1744888248287,-151.0,0.00139726,120]
[358271810,1744888248294,-151.0,0.00139726,120]
[358271811,1744888248302,-151.0,0.00139726,120]
[358271812,1744888248310,-151.0,0.00139726,120]
[358271813,1744888248320,-151.0,0.00139726,120]
[358271814,1744888248330,-151.0,0.00139726,120]
[358271815,1744888248339,-151.0,0.00139726,120]
[358271816,1744888248348,-151.0,0.00139726,120]
[358271817,1744888248358,-167.125432,0.00139726,120]
[358271818,1744888248367,-151.0,0.00139726,120]
[358271819,1744888248377,-151.0,0.00139726,120]
[358271820,1744888248387,-151.0,0.00139726,120]
[358271821,1744888248396,-153.154876,0.00139726,120]
[358271822,1744888248406,-151.0,0.00139726,120]
[358271823,1744888248415,-151.0,0.00139726,120]
[358271824,1744888248425,-151.0,0.00139726,120]
[358271825,1744888248434,-165.873286,0.00139726,120]
[358271826,1744888248445,-165.873286,0.00139726,120]
[358271827,1744888248454,-165.873286,0.00139726,120]
[358271828,1744888248464,-165.873286,0.00139726,120]
[358271829,1744888248473,-165.873286,0.00139726,120]
[358271830,1744888248483,-165.873286,0.00139726,120]
[358271831,1744888248492,-165.873286,0.00139726,120]
[358271832,1744888248502,-165.873286,0.00139726,120]
[358271833,1744888248511,-165.873286,0.00139726,120]
[358271834,1744888248521,-165.873286,0.00139726,120]
[358271835,1744888248530,-165.873296,0.00139726,120]
[358271836,1744888248538,-151.0,0.00139726,120]
[358271837,1744888248547,-156.605314,0.00139726,120]
[358271838,1744888248557,-746.856812,0.00139726,120]
[358271839,1744888248567,-746.856812,0.00139726,120]
[358271840,1744888248576,-746.856812,0.00139726,120]
[358271841,1744888248585,-746.856812,0.00139726,120]
[358271842,1744888248595,-746.856812,0.00139726,120]
[358271843,1744888248604,-746.856812,0.00139726,120]
[358271844,1744888248613,-746.856812,0.00139726,120]
[358271845,1744888248622,-746.856812,0.00139726,120]
[358271846,1744888248630,-746.856812,0.00139726,120]
[358271847,1744888248639,-746.856812,0.00139726,120]
[358271848,1744888248648,-746.856812,0.00139726,120]
[358271849,1744888248657,-746.856812,0.00139726,120]
[358271850,1744888248666,-746.856812,0.00139726,120]
[358271851,1744888248675,-151.0,0.00139726,120]
[358271852,1744888248684,-746.856812,0.00139726,120]
[358271853,1744888248693,-746.856812,0.00139726,120]
[358271854,1744888248702,-746.856812,0.00139726,120]
[358271855,1744888248711,-746.856812,0.00139726,120]
[358271856,1744888248720,-746.856812,0.00139726,120]
[358271857,1744888248730,-746.856812,0.00139726,120]
[358271858,1744888248739,-151.0,0.00139726,120]
[358271859,1744888248747,-151.0,0.00139726,120]
[358271860,1744888248756,-151.0,0.00139726,120]
[358271861,1744888248765,-151.0,0.00139726,120]
[358271862,1744888248774,-151.0,0.00139726,120]
[358271863,1744888248783,-151.0,0.00139726,120]
[358271864,1744888248791,-151.0,0.00139726,120]
[358271865,1744888248799,-151.0,0.00139726,120]
[358271866,1744888248808,-151.0,0.00139726,120]
[358271867,1744888248817,-151.0,0.00139726,120]
[358271868,1744888248825,-151.0,0.00139726,120]
[358271869,1744888248834,-151.0,0.00139726,120]
[358271870,1744888248843,-151.0,0.00139726,120]
[358271871,1744888248853,-151.0,0.00139726,120]
[358271872,1744888248862,-293.26473,0.00139726,120]
[358271873,1744888248872,-151.0,0.00139726,120]
[358271874,1744888248882,-430.356198,0.00139726,120]
[358271875,1744888248892,-430.356198,0.00139726,120]
[358271876,1744888248901,-430.356198,0.00139726,120]
[358271877,1744888248911,-430.356198,0.00139726,120]
[358271878,1744888248920,-430.356198,0.00139726,120]
[358271879,1744888248930,-430.356198,0.00139726,120]
[358271880,1744888248940,-430.356198,0.00139726,120]
[358271881,1744888248950,-430.356198,0.00139726,120]
[358271882,1744888248960,-430.356198,0.00139726,120]
[358271883,1744888248970,-430.356198,0.00139726,120]
[358271884,1744888248982,-430.356198,0.00139726,120]
[358271885,1744888248992,-430.356198,0.00139726,120]
[358271886,1744888249002,-430.356198,0.00139726,120]
[358271887,1744888249012,-430.356198,0.00139726,120]
[358271888,1744888249022,-430.356198,0.00139726,120]
[358271889,1744888249032,-151.0,0.00139726,110]
[358271890,1744888249042,-151.0,0.00139726,110]
[358271891,1744888249052,-430.356198,0.00139726,120]
[358271892,1744888249062,-151.0,0.00139726,120]
[358271893,1744888249072,-151.0,0.00139726,110]
[358271894,1744888249083,-430.356198,0.00139726,120]
[358271895,1744888249094,-151.0,0.00139726,120]
[358271896,1744888249104,-158.446461,0.00139726,110]
[358271897,1744888249115,-430.356198,0.00139726,120]
[358271898,1744888249125,-430.356198,0.00139726,120]
[358271899,1744888249136,-430.356198,0.00139726,120]
[358271900,1744888249146,-153.294474,0.00139726,120]
[358271901,1744888249156,-151.0,0.00139726,120]
[358271902,1744888249167,-237.989268,0.00139726,120]
[358271903,1744888249177,-151.0,0.00139726,120]
[358271904,1744888249186,-151.0,0.00139726,120]
[358271905,1744888249196,-151.0,0.00139726,120]
[358271906,1744888249205,-151.0,0.00139726,120]
[358271907,1744888249215,-151.0,0.00139726,120]
[358271908,1744888249224,-159.541663,0.00139726,120]
[358271909,1744888249234,-151.0,0.00139726,120]
[358271910,1744888249243,-151.0,0.00139726,120]
[358271911,1744888249252,-151.0,0.00139726,120]
[358271912,1744888249262,-151.0,0.00139726,120]
[358271913,1744888249271,-151.0,0.00139726,120]
[358271914,1744888249281,-151.0,0.00139726,120]
[358271915,1744888249290,-151.0,0.00139726,120]
[358271916,1744888249300,-151.0,0.00139726,120]
[358271917,1744888249309,-151.0,0.00139726,120]
[358271918,1744888249320,-151.0,0.00139726,120]
[358271919,1744888249329,-151.0,0.00139726,120]
[358271920,1744888249339,-281.691912,0.00139726,120]
[358271921,1744888249348,-151.0,0.00139726,120]
[358271922,1744888249357,-151.0,0.00139726,120]
[358271923,1744888249367,-155.568167,0.00139726,120]
[358271924,1744888249376,-151.0,0.00139726,120]
[358271925,1744888249386,-151.0,0.00139726,120]
[358271926,1744888249396,-151.0,0.00139726,120]
[358271927,1744888249406,-151.0,0.00139726,120]
[358271928,1744888249415,-151.0,0.00139726,120]
[358271929,1744888249424,-151.0,0.00139726,120]
[358271930,1744888249435,-154.113534,0.00139726,120]
[358271931,1744888249445,-151.0,0.00139726,120]
[358271932,1744888249454,-151.0,0.00139726,120]
[358271933,1744888249464,-151.0,0.00139726,120]
[358271934,1744888249473,-151.0,0.00139726,120]
[358271935,1744888249484,-151.0,0.00139726,120]
[358271936,1744888249493,-151.0,0.00139726,120]
[358271937,1744888249503,-151.0,0.00139726,120]
[358271938,1744888249512,-151.0,0.00139726,120]
[358271939,1744888249522,-151.0,0.00139726,120]
[358271940,1744888249531,-151.0,0.00139726,120]
[358271941,1744888249540,-151.0,0.00139726,120]
[358271942,1744888249549,-151.0,0.00139726,120]
[358271943,1744888249559,-151.0,0.00139726,120]
[358271944,1744888249570,-151.0,0.00139726,120]
[358271945,1744888249579,-151.0,0.00139726,120]
[358271946,1744888249588,-151.0,0.00139726,120]
[358271947,1744888249597,-151.0,0.00139726,120]
[358271948,1744888249606,-151.0,0.00139726,120]
[358271949,1744888249616,-151.0,0.00139726,120]
[358271950,1744888249625,-151.0,0.00139726,120]
[358271951,1744888249634,-151.0,0.00139726,120]
[358271952,1744888249644,-151.0,0.00139726,120]
[358271953,1744888249653,-151.0,0.00139726,120]
[358271954,1744888249663,-297.327564,0.00139726,120]
[358271955,1744888249672,-151.0,0.00139726,120]
[358271956,1744888249682,-151.0,0.00139726,120]
[358271957,1744888249691,-151.0,0.00139726,120]
[358271958,1744888249701,-151.0,0.00139726,120]
[358271959,1744888249714,-151.0,0.00139726,120]
[358271960,1744888249723,-151.0,0.00139726,120]
[358271961,1744888249733,-151.0,0.00139726,120]
[358271962,1744888249742,-151.0,0.00139726,120]
[358271963,1744888249751,-151.0,0.00139726,120]
[358271964,1744888249761,-199.582184,0.00139726,120]
[358271965,1744888249769,-151.0,0.00139726,120]
[358271966,1744888249779,-151.0,0.00139726,120]
[358271967,1744888249788,-151.0,0.00139726,120]
[358271968,1744888249797,-151.0,0.00139726,120]
[358271969,1744888249807,-151.0,0.00139726,120]
[358271970,1744888249816,-151.0,0.00139726,120]
[358271971,1744888249825,-151.0,0.00139726,120]
[358271972,1744888249834,-151.0,0.00139726,120]
[358271973,1744888249844,-151.0,0.00139726,120]
[358271974,1744888249853,-151.0,0.00139726,120]
[358271975,1744888249862,-151.0,0.00139726,120]
[358271976,1744888249872,-151.0,0.00139726,120]
[358271977,1744888249882,-151.0,0.00139726,120]
[358271978,1744888249891,-151.0,0.00139726,120]
[358271979,1744888249900,-151.0,0.00139726,120]
[358271980,1744888249909,-151.0,0.00139726,120]
[358271981,1744888249918,-151.0,0.00139726,120]
[358271982,1744888249927,-151.0,0.00139726,120]
[358271983,1744888249937,-151.0,0.00139726,120]
[358271984,1744888249946,-151.0,0.00139726,120]
[358271985,1744888249956,-170.479221,0.00139726,120]
[358271986,1744888249966,-247.82866,0.00139726,120]
[358271987,1744888249975,-170.479221,0.00139726,120]
[358271988,1744888249984,-170.479221,0.00139726,120]
[358271989,1744888249993,-170.479221,0.00139726,120]
[358271990,1744888250002,-170.479221,0.00139726,120]
[358271991,1744888250012,-170.479221,0.00139726,120]
[358271992,1744888250107,-170.479221,0.00139726,120]
[358271993,1744888250117,-170.479221,0.00139726,120]
[358271994,1744888250127,-170.479221,0.00139726,120]
[358271995,1744888250136,-170.479221,0.00139726,120]
[358271996,1744888250145,-170.479221,0.00139726,120]
[358271997,1744888250156,-170.479221,0.00139726,120]
[358271998,1744888250166,-170.479221,0.00139726,120]
[358271999,1744888250175,-170.479221,0.00139726,120]
[358272000,1744888250184,-170.479221,0.00139726,120]
[358272001,1744888250193,-170.479221,0.00139726,120]
[358272002,1744888250203,-170.479221,0.00139726,120]
[358272003,1744888250212,-170.479221,0.00139726,120]
[358272004,1744888250221,-170.479221,0.00139726,120]
[358272005,1744888250231,-170.479221,0.00139726,120]
[358272006,1744888250240,-151.0,0.00139726,120]
[358272007,1744888250250,-151.0,0.00139726,120]
[358272008,1744888250260,-151.0,0.00139726,120]
[358272009,1744888250269,-151.66668,0.00139726,120]
[358272010,1744888250278,-207.781404,0.00139726,120]
[358272011,1744888250288,-207.781404,0.00139726,120]
[358272012,1744888250297,-207.781404,0.00139726,120]
[358272013,1744888250306,-207.781404,0.00139726,120]
[358272014,1744888250315,-207.781404,0.00139726,120]
[358272015,1744888250325,-207.781404,0.00139726,120]
[358272016,1744888250334,-207.781404,0.00139726,120]
[358272017,1744888250343,-207.781404,0.00139726,120]
[358272018,1744888250362,-207.781404,0.00139726,120]
[358272019,1744888250372,-207.781404,0.00139726,120]
[358272020,1744888250382,-207.781404,0.00139726,120]
[358272021,1744888250391,-207.781404,0.00139726,120]
[358272022,1744888250400,-207.781404,0.00139726,120]
[358272023,1744888250411,-207.781404,0.00139726,120]
[358272024,1744888250420,-207.781404,0.00139726,120]
[358272025,1744888250430,-207.781404,0.00139726,120]
[358272026,1744888250439,-207.781404,0.00139726,120]
[358272027,1744888250450,-207.781404,0.00139726,120]
[358272028,1744888250460,-207.781404,0.00139726,120]
[358272029,1744888250470,-207.781414,0.00139726,120]
[358272030,1744888250480,-155.199696,0.00139726,120]
[358272031,1744888250489,-215.483836,0.00139726,120]
[358272032,1744888250499,-215.483836,0.00139726,120]
[358272033,1744888250509,-215.483836,0.00139726,120]
[358272034,1744888250519,-215.483836,0.00139726,120]
[358272035,1744888250528,-215.483836,0.00139726,120]
[358272036,1744888250538,-215.483836,0.00139726,120]
[358272037,1744888250548,-215.483836,0.00139726,120]
[358272038,1744888250558,-215.483836,0.00139726,120]
[358272039,1744888250569,-215.483836,0.00139726,120]
[358272040,1744888250578,-215.483836,0.00139726,120]
[358272041,1744888250588,-215.483836,0.00139726,120]
[358272042,1744888250598,-215.483836,0.00139726,120]
[358272043,1744888250607,-215.483836,0.00139726,120]
[358272044,1744888250617,-215.483836,0.00139726,120]
[358272045,1744888250626,-215.483836,0.00139726,120]
[358272046,1744888250636,-215.483836,0.00139726,120]
[358272047,1744888250646,-215.483836,0.00139726,120]
[358272048,1744888250656,-215.483836,0.00139726,120]
[358272049,1744888250666,-215.483836,0.00139726,120]
[358272050,1744888250675,-215.483836,0.00139726,120]
[358272051,1744888250686,-151.868377,0.00139726,120]
[358272052,1744888250696,-154.151272,0.00139726,120]
[358272053,1744888250706,-151.0,0.00139726,120]
[358272054,1744888250715,-151.0,0.00139726,120]
[358272055,1744888250725,-151.0,0.00139726,120]
[358272056,1744888250735,-151.0,0.00139726,120]
[358272057,1744888250744,-233.688048,0.00139726,120]
[358272058,1744888250754,-151.0,0.00139726,120]
[358272059,1744888250763,-151.0,0.00139726,120]
[358272060,1744888250773,-151.0,0.00139726,120]
[358272061,1744888250783,-151.0,0.00139726,120]
[358272062,1744888250792,-151.0,0.00139726,120]
[358272063,1744888250801,-151.0,0.00139726,120]
[358272064,1744888250811,-164.622782,0.00139726,120]
[358272065,1744888250821,-392.14,0.00139912,120]
[358272066,1744888250830,-392.14,0.00144802,120]
[358272067,1744888250840,-170.0,0.00151901,2]
[358272068,1744888250849,-362.21129326,0.00152743,60]
[358272069,1744888250859,-219489.35892329,0.00152743,60]
[358272070,1744888250869,-299250.3710929,0.00152743,120]
[358272071,1744888250879,-573.5,0.00162856,120]
[358272072,1744888250888,-500.0,0.00164383,120]
[358272073,1744888250898,-10035.0,0.00190209,100]
[358272074,1744888250907,-500.0,0.0019178,120]
[358272075,1744888250917,-169.17,0.0019726,120]
[358272076,1744888250926,-169.17,0.0019726,120]
[358272077,1744888250935,-169.17,0.0019726,120]
[358272078,1744888250944,-169.17,0.0019726,120]
[358272079,1744888250954,-169.17,0.0019726,120]
[358272080,1744888250964,-12806.6761028,0.00198441,60]
[358272081,1744888250974,-2995.16,0.00199,60]
[358272082,1744888250984,-3818.06153435,0.00213956,15]
[358272083,1744888250993,-5327.45511474,0.00215967,15]
[358272084,1744888251003,-532.82884975,0.00219178,120]
[358272085,1744888251013,-67074.79335144,0.0023441,120]
[358272086,1744888251186,-1619.4,0.0023441,120]
[358272087,1744888251206,-3643.87166834,0.0023441,120]
[358272088,1744888251217,-2885.90769575,0.0023441,120]
[358272089,1744888251292,-9505.7231193,0.0023441,120]
[358272090,1744888251301,-2000.0,0.00242468,16]
[358272091,1744888251311,-1000.0,0.00268,120]
[358272092,1744888251320,-140.77546489,0.00268356,30]
[358272093,1744888251335,-9.22453511,0.00268356,30]
[358272094,1744888251344,-160.65,0.00268356,30]
[358272095,1744888251353,-160.65,0.00268356,30]
[358272096,1744888251364,-57.2433052,0.00268356,30]
[358272097,1744888251375,-103.4066948,0.00268356,30]
[358272098,1744888251385,-1124.0,0.00268548,120]
[358272099,1744888251394,-150.0,0.00269178,30]
[358272100,1744888251403,-150.0,0.00269178,30]
[358272101,1744888251413,-150.0,0.00269178,30]
[358272102,1744888251423,-150.0,0.00269178,30]
[358272103,1744888251432,-195.0,0.00269243,2]
[358272104,1744888251441,-150.208,0.00269243,120]
[358272105,1744888251451,-150.518,0.00269243,120]
[358272106,1744888251460,-241.931,0.00269243,120]
[358272107,1744888251469,-2047.0,0.00269243,120]
[358272108,1744888251478,-1416.174,0.00269243,120]
[358272109,1744888251487,-1451.938,0.00269243,120]
[358272110,1744888251497,-774.29852773,0.00269243,2]
[358272111,1744888251520,-19.70147227,0.00269243,2]
[358272112,1744888251530,-1438.0,0.00269243,120]
[358272113,1744888251539,-545.0,0.00269243,120]
[358272114,1744888251549,-1280.0,0.00269243,120]
[358272115,1744888251558,-361.79858773,0.00269243,120]
[358272116,1744888251570,-546.20141227,0.00269243,120]
[358272117,1744888251580,-578.135,0.00269243,120]
[358272118,1744888251589,-4164.009,0.00269243,120]
[358272119,1744888251599,-1124.0,0.00271548,120]
[358272120,1744888251609,-150.0,0.00272243,2]
[358272121,1744888251619,-792.0,0.00272243,2]
[358272122,1744888251628,-386.008,0.00272243,120]
[358272123,1744888251638,-4150.0,0.00272243,120]
[358272124,1744888251647,-259.51023402,0.00273962,30]
[358272125,1744888251657,-251.408092,0.00273972,120]
[358272126,1744888251667,-254.750589,0.00273972,120]
[358272127,1744888251680,-217.942532,0.00273972,120]
[358272128,1744888251689,-500.0,0.00273972,120]
[358272129,1744888251699,-526.51568914,0.00273972,120]
[358272130,1744888251709,-44.59139463,0.00273972,120]
[358272131,1744888251721,-459.65037955,0.00273972,120]
[358272132,1744888251730,-404.6158635,0.00273972,120]
[358272133,1744888251740,-504.31121982,0.00273972,120]
[358272134,1744888251751,-500.0,0.00273972,120]
[358272135,1744888251760,-531.4311679,0.00273972,120]
[358272136,1744888251770,-500.0,0.00273972,120]
[358272137,1744888251779,-501.60929688,0.00273972,120]
[358272138,1744888251788,-500.82647684,0.00273972,120]
[358272139,1744888251798,-500.7644163,0.00273972,120]
[358272140,1744888251807,-500.0,0.00273972,120]
[358272141,1744888251816,-500.0,0.00273972,120]
[358272142,1744888251826,-418.51277921,0.00273972,120]
[358272143,1744888949966,250.0,0.00017,2]
[358272144,1744888951056,300.0,0.00019,2]
[358272145,1744889108483,125236.10965033,0.00018,2]
[358272146,1744889127486,2098.92435267,0.00025,120]
[358272147,1744889132699,1068.18982678,0.0002,120]
[358272148,1744889156927,299.84145394,0.00017,120]
[358272150,1744889226550,462.13319545,0.00019,3]
[358272151,1744889231120,-1327.7904365,0.00024,5]
[358272152,1744889232384,275.84571091,0.0002301,120]
[358272153,1744889248080,-973.00223948,0.00024,5]
[358272154,1744889248103,-350.0,0.00030999,2]
[358272155,1744889248124,-852.61470394,0.00031,120]
[358272156,1744889253130,-1863.48071719,0.00031,120]
[358272157,1744889281869,9537.86680455,0.0002,2]
[358272158,1744889281893,10000.0,0.0002,2]
[358272159,1744889281914,5134.23301207,0.0002,2]
[358272164,1744889319892,763.19019338,0.00022,7]
[358272167,1744889323815,1342.03887665,0.0002,2]
[358272168,1744889325147,1027.43591875,0.00015,30]
[358272170,1744889357080,-966.15628595,0.00023,15]
[358272171,1744889357102,-509.27244081,0.000276,2]
[358272172,1744889357122,-500.93404628,0.0003,120]
[358272173,1744889357143,-9165.68873419,0.00031,120]
[358272174,1744889357165,-1035.0,0.00031329,2]
[358272175,1744889357186,-410.21767156,0.0003133,2]
[358272176,1744889358105,-1706.02226054,0.0003133,2]
[358272177,1744889403146,480.0,0.00019,30]
[358272187,1744889432091,-300.0,0.00031329,3]
[358272189,1744889432101,-88.76414545,0.00031329,2]
[358272191,1744889432113,-311.23585455,0.00031329,2]
[358272192,1744889432122,-467.86414545,0.0003133,2]
[358272193,1744889432147,-438.25924277,0.0003133,2]
[358272194,1744889432157,-426.36644233,0.0003133,2]
[358272195,1744889432168,-450.0,0.0003133,2]
[358272196,1744889432258,-10653.32572328,0.0003133,2]
[358272197,1744889432286,-1315.05914698,0.0003133,2]
[358272198,1744889432297,-255.97559429,0.0003133,2]
[358272199,1744889432314,-498.40740433,0.0003133,2]
[358272200,1744889432324,-574.01311803,0.0003133,2]
[358272201,1744889432335,-270.33973497,0.0003133,2]
[358272202,1744889432345,-503.4735659,0.0003133,2]
[358272203,1744889432358,-310.31,0.0003133,2]
[358272204,1744889432371,-700.0,0.0003133,2]
[358272205,1744889432386,-697.08410392,0.0003133,2]
[358272206,1744889432429,-7881.96155439,0.0003133,2]
[358272386,1744889438206,-377.58785162,0.0003133,2]
[358272387,1744889438372,-1903.46099217,0.0003133,2]
[358272388,1744889438384,-403.24149175,0.0003133,2]
[358272389,1744889438532,-10091.77465607,0.0003133,2]
[358272390,1744889438544,-1618.45360201,0.0003133,2]
[358272391,1744889438588,-432.29999784,0.0003133,2]
[358272394,1744889438600,-325.08836057,0.0003133,2]
[358272454,1744889440517,-39003.89799535,0.0003133,2]
[358272455,1744889440527,-560.0,0.00033719,2]
[358272456,1744889440538,-783.0,0.00036292,2]
[358272457,1744889440554,-1097.0,0.00039061,5]